[Event "Titled Tuesday Blitz July 25 Early 2023"]
[White "Shishkov, Andrei"]
[Black "Chemin, Justo Reinaldo"]
[WhiteFideId "4500563"]
[BlackFideId "2101580"]
[WhiteElo "2569"]
[BlackElo "2255"]
[Result "1-0"]
[Round "1"]
[TimeControl "180+2"]
[Date "2023.07.25"]
[WhiteClock "0:00:17"]
[BlackClock "0:00:01"]
[Board "192"]

1. d4 {[%clk 0:03:00]}  d5 {[%clk 0:02:58]} 2. c4 {[%clk 0:03:00]}  dxc4 {[%clk 0:02:57]} 3. e4 {[%clk 0:03:00]}  Nf6 {[%clk 0:02:56]} 4. e5 {[%clk 0:02:56]}  Nd5 {[%clk 0:02:55]} 5. Bxc4 {[%clk 0:02:57]}  Nb6 {[%clk 0:02:55]} 6. Bb3 {[%clk 0:02:55]}  Nc6 {[%clk 0:02:54]} 7. Ne2 {[%clk 0:02:54]}  Bg4 {[%clk 0:02:44]} 8. Nbc3 {[%clk 0:02:48]}  e6 {[%clk 0:02:41]} 9. O-O {[%clk 0:02:46]}  Qd7 {[%clk 0:02:40]} 10. Be3 {[%clk 0:02:43]}  O-O-O {[%clk 0:02:39]} 11. a3 {[%clk 0:02:23]}  Kb8 {[%clk 0:02:34]} 12. f3 {[%clk 0:02:15]}  Bh5 {[%clk 0:02:33]} 13. Qe1 {[%clk 0:02:13]}  Na5 {[%clk 0:02:20]} 14. Ba2 {[%clk 0:02:07]}  Nac4 {[%clk 0:02:17]} 15. Bg5 {[%clk 0:02:03]}  Be7 {[%clk 0:02:12]} 16. Qh4 {[%clk 0:01:44]}  Bxg5 {[%clk 0:02:02]} 17. Qxg5 {[%clk 0:01:45]}  Bg6 {[%clk 0:02:01]} 18. Bxc4 {[%clk 0:01:35]}  Nxc4 {[%clk 0:01:59]} 19. b3 {[%clk 0:01:34]}  h6 {[%clk 0:01:53]} 20. Qc1 {[%clk 0:01:31]}  Nb6 {[%clk 0:01:51]} 21. Rd1 {[%clk 0:01:28]}  Nd5 {[%clk 0:01:48]} 22. Nxd5 {[%clk 0:01:19]}  Qxd5 {[%clk 0:01:44]} 23. Qc4 {[%clk 0:01:09]}  Qxc4 {[%clk 0:01:12]} 24. bxc4 {[%clk 0:01:10]}  c6 {[%clk 0:01:09]} 25. Kf2 {[%clk 0:01:08]}  Rd7 {[%clk 0:01:09]} 26. Ke3 {[%clk 0:01:08]}  Rhd8 {[%clk 0:01:08]} 27. Rd2 {[%clk 0:01:07]}  f6 {[%clk 0:01:02]} 28. Rad1 {[%clk 0:00:50]}  Kc7 {[%clk 0:00:53]} 29. Nf4 {[%clk 0:00:42]}  Bf7 {[%clk 0:00:53]} 30. exf6 {[%clk 0:00:30]}  gxf6 {[%clk 0:00:53]} 31. c5 {[%clk 0:00:27]}  b6 {[%clk 0:00:40]} 32. g4 {[%clk 0:00:19]}  bxc5 {[%clk 0:00:33]} 33. dxc5 {[%clk 0:00:20]}  Rxd2 {[%clk 0:00:27]} 34. Rxd2 {[%clk 0:00:21]}  Rxd2 {[%clk 0:00:27]} 35. Kxd2 {[%clk 0:00:22]}  e5 {[%clk 0:00:27]} 36. Ne2 {[%clk 0:00:18]}  Bd5 {[%clk 0:00:26]} 37. Ke3 {[%clk 0:00:17]}  Kd7 {[%clk 0:00:21]} 38. Ng3 {[%clk 0:00:17]}  Be6 {[%clk 0:00:18]} 39. Ke4 {[%clk 0:00:16]}  Ke7 {[%clk 0:00:18]} 40. Nf5+ {[%clk 0:00:17]}  Bxf5+ {[%clk 0:00:08]} 41. Kxf5 {[%clk 0:00:17]}  Kf7 {[%clk 0:00:08]} 42. a4 {[%clk 0:00:17]}  a5 {[%clk 0:00:05]} 43. h3 {[%clk 0:00:17]}  Kg7 {[%clk 0:00:02]} 44. Ke6 {[%clk 0:00:17]}  Kg6 {[%clk 0:00:02]} 45. Kd6 {[%clk 0:00:18]}  Kg5 {[%clk 0:00:03]} 46. Kxc6 {[%clk 0:00:18]}  Kf4 {[%clk 0:00:03]} 47. Kd6 {[%clk 0:00:17]}  Kxf3 {[%clk 0:00:04]} 48. c6 {[%clk 0:00:18]}  e4 {[%clk 0:00:05]} 49. c7 {[%clk 0:00:18]}  e3 {[%clk 0:00:06]} 50. c8=Q {[%clk 0:00:19]}  e2 {[%clk 0:00:06]} 51. Qf5+ {[%clk 0:00:19]}  Kg2 {[%clk 0:00:02]} 52. Qe6 {[%clk 0:00:16]}  Kf2 {[%clk 0:00:01]} 53. Qxf6+ {[%clk 0:00:17]} 1-0


[Site "https://www.chess.com"]

[Event "Titled Tuesday Blitz July 25 Early 2023"]
[White "Kohler, Aran"]
[Black "Fernandez, Fernando"]
[WhiteFideId "1002856"]
[BlackFideId "3802299"]
[WhiteElo "2254"]
[BlackElo "2567"]
[Result "0-1"]
[Round "1"]
[TimeControl "180+2"]
[Date "2023.07.25"]
[WhiteClock "0:01:48"]
[BlackClock "0:01:42"]
[Board "193"]

1. Nf3 {[%clk 0:02:58]}  d5 {[%clk 0:02:55]} 2. d4 {[%clk 0:02:59]}  Nf6 {[%clk 0:02:55]} 3. Bg5 {[%clk 0:02:59]}  Ne4 {[%clk 0:02:54]} 4. Bf4 {[%clk 0:02:58]}  c5 {[%clk 0:02:54]} 5. e3 {[%clk 0:02:57]}  Qb6 {[%clk 0:02:51]} 6. Nc3 {[%clk 0:02:47]}  Nxc3 {[%clk 0:02:47]} 7. bxc3 {[%clk 0:02:47]}  Qa5 {[%clk 0:02:46]} 8. Qd2 {[%clk 0:02:43]}  Nd7 {[%clk 0:02:42]} 9. Be2 {[%clk 0:02:42]}  c4 {[%clk 0:02:35]} 10. O-O {[%clk 0:02:42]}  Nf6 {[%clk 0:02:36]} 11. Rfb1 {[%clk 0:02:25]}  Ne4 {[%clk 0:02:30]} 12. Qe1 {[%clk 0:02:25]}  e6 {[%clk 0:02:24]} 13. a4 {[%clk 0:02:23]}  Be7 {[%clk 0:02:21]} 14. Rb5 {[%clk 0:02:19]}  Qxc3 {[%clk 0:02:20]} 15. Qxc3 {[%clk 0:02:14]}  Nxc3 {[%clk 0:02:20]} 16. Bf1 {[%clk 0:02:09]}  Nxb5 {[%clk 0:02:20]} 17. axb5 {[%clk 0:02:10]}  Bd7 {[%clk 0:02:13]} 18. b6 {[%clk 0:02:09]}  a5 {[%clk 0:02:10]} 19. Bc7 {[%clk 0:02:09]}  f6 {[%clk 0:02:07]} 20. e4 {[%clk 0:02:08]}  Kf7 {[%clk 0:01:55]} 21. exd5 {[%clk 0:02:08]}  exd5 {[%clk 0:01:56]} 22. g3 {[%clk 0:02:02]}  Bd8 {[%clk 0:01:48]} 23. Bg2 {[%clk 0:01:58]}  Bxc7 {[%clk 0:01:46]} 24. bxc7 {[%clk 0:01:59]}  Rhc8 {[%clk 0:01:47]} 25. Nd2 {[%clk 0:01:58]}  Bc6 {[%clk 0:01:46]} 26. Nb1 {[%clk 0:01:47]}  Rxc7 {[%clk 0:01:44]} 27. Nc3 {[%clk 0:01:48]}  Rd7 {[%clk 0:01:43]} 28. h4 {[%clk 0:01:48]}  b5 {[%clk 0:01:42]} 0-1


[Site "https://www.chess.com"]

[Event "Titled Tuesday Blitz July 25 Early 2023"]
[White "Fiorito, Francisco"]
[Black "Doluhanova, Evgeniya"]
[WhiteFideId "180165"]
[BlackFideId "14112035"]
[WhiteElo "2566"]
[BlackElo "2251"]
[Result "0-1"]
[Round "1"]
[TimeControl "180+2"]
[Date "2023.07.25"]
[WhiteClock "0:01:39"]
[BlackClock "0:01:23"]
[Board "194"]

1. d4 {[%clk 0:02:55]}  Nf6 {[%clk 0:02:59]} 2. Nc3 {[%clk 0:02:53]}  d5 {[%clk 0:02:56]} 3. Bf4 {[%clk 0:02:52]}  Bf5 {[%clk 0:02:55]} 4. e3 {[%clk 0:02:48]}  e6 {[%clk 0:02:54]} 5. Nf3 {[%clk 0:02:42]}  Bd6 {[%clk 0:02:53]} 6. Ne5 {[%clk 0:02:41]}  Ne4 {[%clk 0:02:48]} 7. Nxe4 {[%clk 0:02:38]}  Bxe4 {[%clk 0:02:48]} 8. h4 {[%clk 0:02:34]}  Nd7 {[%clk 0:02:45]} 9. f3 {[%clk 0:02:26]}  Bg6 {[%clk 0:02:45]} 10. h5 {[%clk 0:02:25]}  Bf5 {[%clk 0:02:29]} 11. g4 {[%clk 0:02:25]}  g5 {[%clk 0:02:22]} 12. Bh2 {[%clk 0:02:17]}  f6 {[%clk 0:02:09]} 13. Nxd7 {[%clk 0:02:15]}  Bxh2 {[%clk 0:02:06]} 14. Rxh2 {[%clk 0:02:15]}  Qxd7 {[%clk 0:02:05]} 15. gxf5 {[%clk 0:02:15]}  exf5 {[%clk 0:02:06]} 16. Qd3 {[%clk 0:02:12]}  O-O-O {[%clk 0:02:03]} 17. O-O-O {[%clk 0:02:12]}  Rhe8 {[%clk 0:01:58]} 18. Rf2 {[%clk 0:02:00]}  h6 {[%clk 0:01:56]} 19. Bh3 {[%clk 0:01:48]}  g4 {[%clk 0:01:51]} 20. fxg4 {[%clk 0:01:49]}  fxg4 {[%clk 0:01:50]} 21. Bg2 {[%clk 0:01:49]}  Qe6 {[%clk 0:01:31]} 22. Kd2 {[%clk 0:01:46]}  Rd7 {[%clk 0:01:24]} 23. Qf5 {[%clk 0:01:39]}  Qxe3# {[%clk 0:01:23]} 0-1


[Site "https://www.chess.com"]

[Event "Titled Tuesday Blitz July 25 Early 2023"]
[White "Trifan, Andrei Ioan"]
[Black "Mesfin, Leykun"]
[WhiteFideId "12967068"]
[BlackFideId "15700097"]
[WhiteElo "2565"]
[BlackElo "2250"]
[Result "1-0"]
[Round "1"]
[TimeControl "180+2"]
[Date "2023.07.25"]
[WhiteClock "0:02:03"]
[BlackClock "0:02:28"]
[Board "196"]

1. Nf3 {[%clk 0:03:00]}  Nf6 {[%clk 0:02:59]} 2. e3 {[%clk 0:02:59]}  g6 {[%clk 0:02:59]} 3. b3 {[%clk 0:02:58]}  Bg7 {[%clk 0:02:58]} 4. Bb2 {[%clk 0:02:59]}  O-O {[%clk 0:02:58]} 5. Be2 {[%clk 0:02:59]}  d6 {[%clk 0:02:57]} 6. d4 {[%clk 0:02:59]}  Nbd7 {[%clk 0:02:57]} 7. O-O {[%clk 0:02:58]}  c6 {[%clk 0:02:57]} 8. c4 {[%clk 0:02:58]}  Qe8 {[%clk 0:02:57]} 9. Nc3 {[%clk 0:02:45]}  e5 {[%clk 0:02:57]} 10. dxe5 {[%clk 0:02:46]}  Nxe5 {[%clk 0:02:56]} 11. Qxd6 {[%clk 0:02:42]}  Nxf3+ {[%clk 0:02:53]} 12. Bxf3 {[%clk 0:02:43]}  Bf5 {[%clk 0:02:51]} 13. Rad1 {[%clk 0:02:37]}  Rd8 {[%clk 0:02:48]} 14. Qc7 {[%clk 0:02:24]}  Rxd1 {[%clk 0:02:47]} 15. Rxd1 {[%clk 0:02:25]}  Ne4 {[%clk 0:02:45]} 16. Bxe4 {[%clk 0:02:22]}  Bxe4 {[%clk 0:02:44]} 17. Ba3 {[%clk 0:02:13]}  Bxc3 {[%clk 0:02:39]} 18. Bxf8 {[%clk 0:02:12]}  Bd5 {[%clk 0:02:31]} 19. cxd5 {[%clk 0:02:07]}  Qxf8 {[%clk 0:02:29]} 20. dxc6 {[%clk 0:02:03]}  bxc6 {[%clk 0:02:28]} 21. Rd8 {[%clk 0:02:03]} 1-0


[Site "https://www.chess.com"]

[Event "Titled Tuesday Blitz July 25 Early 2023"]
[White "Khouri, Ahmed Abbas"]
[Black "Roebers, Eline"]
[WhiteFideId "9301518"]
[BlackFideId "1058401"]
[WhiteElo "2246"]
[BlackElo "2564"]
[Result "0-1"]
[Round "1"]
[TimeControl "180+2"]
[Date "2023.07.25"]
[WhiteClock "0:00:18"]
[BlackClock "0:00:32"]
[Board "199"]

1. e4 {[%clk 0:02:59]}  c5 {[%clk 0:02:59]} 2. f4 {[%clk 0:02:59]}  d5 {[%clk 0:02:58]} 3. Bb5+ {[%clk 0:02:59]}  Bd7 {[%clk 0:02:58]} 4. Bxd7+ {[%clk 0:02:59]}  Qxd7 {[%clk 0:02:57]} 5. Nc3 {[%clk 0:03:00]}  d4 {[%clk 0:02:50]} 6. Nce2 {[%clk 0:03:00]}  g6 {[%clk 0:02:49]} 7. d3 {[%clk 0:03:00]}  Bg7 {[%clk 0:02:49]} 8. Nf3 {[%clk 0:03:01]}  Nc6 {[%clk 0:02:49]} 9. O-O {[%clk 0:03:01]}  Nf6 {[%clk 0:02:45]} 10. a3 {[%clk 0:03:01]}  O-O {[%clk 0:02:45]} 11. Qe1 {[%clk 0:03:02]}  Rae8 {[%clk 0:02:42]} 12. Qh4 {[%clk 0:03:02]}  Qg4 {[%clk 0:02:40]} 13. Qf2 {[%clk 0:03:00]}  e5 {[%clk 0:02:31]} 14. h3 {[%clk 0:02:58]}  Qd7 {[%clk 0:02:29]} 15. Qh4 {[%clk 0:02:52]}  exf4 {[%clk 0:02:22]} 16. Bxf4 {[%clk 0:02:53]}  Nh5 {[%clk 0:02:11]} 17. Bg5 {[%clk 0:02:45]}  f6 {[%clk 0:02:08]} 18. Bd2 {[%clk 0:02:41]}  f5 {[%clk 0:02:07]} 19. Ng5 {[%clk 0:01:36]}  h6 {[%clk 0:02:02]} 20. g4 {[%clk 0:01:36]}  hxg5 {[%clk 0:01:59]} 21. Bxg5 {[%clk 0:01:35]}  fxg4 {[%clk 0:01:38]} 22. hxg4 {[%clk 0:01:35]}  Ne5 {[%clk 0:01:38]} 23. gxh5 {[%clk 0:01:21]}  Nf3+ {[%clk 0:01:34]} 24. Rxf3 {[%clk 0:01:21]}  Rxf3 {[%clk 0:01:35]} 25. hxg6 {[%clk 0:01:19]}  Rh3 {[%clk 0:01:34]} 26. Qf2 {[%clk 0:01:12]}  Rf8 {[%clk 0:01:30]} 27. Qg2 {[%clk 0:01:11]}  Be5 {[%clk 0:01:23]} 28. Rf1 {[%clk 0:01:00]}  Bh2+ {[%clk 0:01:19]} 29. Kh1 {[%clk 0:00:57]}  Rxf1+ {[%clk 0:01:12]} 30. Qxf1 {[%clk 0:00:56]}  Bf4+ {[%clk 0:01:08]} 31. Kg1 {[%clk 0:00:53]}  Qg4+ {[%clk 0:01:07]} 32. Qg2 {[%clk 0:00:50]}  Qxg2+ {[%clk 0:00:53]} 33. Kxg2 {[%clk 0:00:50]}  Rh2+ {[%clk 0:00:53]} 34. Kg1 {[%clk 0:00:40]}  Rxe2 {[%clk 0:00:51]} 35. Bxf4 {[%clk 0:00:39]}  Rxc2 {[%clk 0:00:51]} 36. b4 {[%clk 0:00:39]}  c4 {[%clk 0:00:46]} 37. dxc4 {[%clk 0:00:34]}  d3 {[%clk 0:00:46]} 38. Kf1 {[%clk 0:00:33]}  Rxc4 {[%clk 0:00:45]} 39. Bd2 {[%clk 0:00:25]}  Rxe4 {[%clk 0:00:41]} 40. Bc3 {[%clk 0:00:25]}  Re6 {[%clk 0:00:34]} 41. g7 {[%clk 0:00:24]}  Rc6 {[%clk 0:00:33]} 42. Bd4 {[%clk 0:00:17]}  Rc1+ {[%clk 0:00:31]} 43. Kf2 {[%clk 0:00:18]}  d2 {[%clk 0:00:32]} 0-1


[Site "https://www.chess.com"]

[Event "Titled Tuesday Blitz July 25 Early 2023"]
[White "Ezat, Mohamed"]
[Black "Fernandez Hernandez, Gerardo"]
[WhiteFideId "10600906"]
[BlackFideId "2207400"]
[WhiteElo "2563"]
[BlackElo "2246"]
[Result "1-0"]
[Round "1"]
[TimeControl "180+2"]
[Date "2023.07.25"]
[WhiteClock "0:00:55"]
[BlackClock "0:00:13"]
[Board "200"]

1. d4 {[%clk 0:02:54]}  Nf6 {[%clk 0:02:59]} 2. c4 {[%clk 0:02:51]}  c5 {[%clk 0:02:56]} 3. d5 {[%clk 0:02:50]}  e5 {[%clk 0:02:57]} 4. Nc3 {[%clk 0:02:50]}  d6 {[%clk 0:02:57]} 5. e4 {[%clk 0:02:50]}  g6 {[%clk 0:02:57]} 6. Be2 {[%clk 0:02:44]}  Bg7 {[%clk 0:02:56]} 7. Nf3 {[%clk 0:02:42]}  O-O {[%clk 0:02:54]} 8. O-O {[%clk 0:02:41]}  Bg4 {[%clk 0:02:49]} 9. Ne1 {[%clk 0:02:41]}  Bxe2 {[%clk 0:02:48]} 10. Qxe2 {[%clk 0:02:41]}  Nbd7 {[%clk 0:02:48]} 11. Nd3 {[%clk 0:02:35]}  Nh5 {[%clk 0:02:45]} 12. Rb1 {[%clk 0:02:25]}  Qe7 {[%clk 0:02:42]} 13. b4 {[%clk 0:02:20]}  cxb4 {[%clk 0:02:25]} 14. Rxb4 {[%clk 0:02:16]}  Nc5 {[%clk 0:02:26]} 15. Nxc5 {[%clk 0:02:15]}  dxc5 {[%clk 0:02:26]} 16. Rb1 {[%clk 0:02:15]}  Nf6 {[%clk 0:02:18]} 17. Bg5 {[%clk 0:01:44]}  h6 {[%clk 0:02:17]} 18. Bxf6 {[%clk 0:01:44]}  Bxf6 {[%clk 0:02:11]} 19. d6 {[%clk 0:01:43]}  Qxd6 {[%clk 0:02:02]} 20. Rxb7 {[%clk 0:01:42]}  Rfb8 {[%clk 0:01:52]} 21. Rxb8+ {[%clk 0:01:39]}  Rxb8 {[%clk 0:01:48]} 22. Nd5 {[%clk 0:01:39]}  Bd8 {[%clk 0:01:46]} 23. Rd1 {[%clk 0:01:31]}  Kg7 {[%clk 0:01:45]} 24. g3 {[%clk 0:01:30]}  Qc6 {[%clk 0:01:36]} 25. h4 {[%clk 0:01:30]}  h5 {[%clk 0:01:32]} 26. Qf3 {[%clk 0:01:27]}  Rb2 {[%clk 0:01:26]} 27. Qa3 {[%clk 0:01:25]}  Rc2 {[%clk 0:01:05]} 28. Ne3 {[%clk 0:01:07]}  Qxe4 {[%clk 0:00:39]} 29. Nxc2 {[%clk 0:00:59]}  Bxh4 {[%clk 0:00:29]} 30. Qd3 {[%clk 0:00:55]}  Qg4 {[%clk 0:00:20]} 31. Ne3 {[%clk 0:00:55]}  Qf3 {[%clk 0:00:14]} 32. Nf5+ {[%clk 0:00:55]}  Qxf5 {[%clk 0:00:13]} 33. Qxf5 {[%clk 0:00:55]} 1-0


[Site "https://www.chess.com"]

[Event "Titled Tuesday Blitz July 25 Early 2023"]
[White "Eynullayev, Altay"]
[Black "Torres Hernandez, Leslie Carolin"]
[WhiteFideId "13413562"]
[BlackFideId "8400504"]
[WhiteElo "2561"]
[BlackElo "2246"]
[Result "1-0"]
[Round "1"]
[TimeControl "180+2"]
[Date "2023.07.25"]
[WhiteClock "0:00:25"]
[BlackClock "0:00:01"]
[Board "202"]

1. e4 {[%clk 0:03:00]}  e6 {[%clk 0:02:59]} 2. d4 {[%clk 0:03:00]}  d5 {[%clk 0:02:58]} 3. e5 {[%clk 0:03:00]}  c5 {[%clk 0:02:58]} 4. c3 {[%clk 0:03:01]}  Nc6 {[%clk 0:02:58]} 5. Nf3 {[%clk 0:03:01]}  Qb6 {[%clk 0:02:58]} 6. a3 {[%clk 0:03:01]}  Nge7 {[%clk 0:02:59]} 7. Bd3 {[%clk 0:02:54]}  cxd4 {[%clk 0:02:58]} 8. cxd4 {[%clk 0:02:53]}  Nf5 {[%clk 0:02:59]} 9. Bxf5 {[%clk 0:02:53]}  exf5 {[%clk 0:03:00]} 10. Nc3 {[%clk 0:02:54]}  Be6 {[%clk 0:03:00]} 11. O-O {[%clk 0:02:54]}  Be7 {[%clk 0:03:00]} 12. b4 {[%clk 0:02:54]}  O-O {[%clk 0:02:53]} 13. Na4 {[%clk 0:02:51]}  Qd8 {[%clk 0:02:53]} 14. Be3 {[%clk 0:02:47]}  Rc8 {[%clk 0:02:50]} 15. Rc1 {[%clk 0:02:46]}  h6 {[%clk 0:02:47]} 16. Nc5 {[%clk 0:02:40]}  b6 {[%clk 0:02:40]} 17. Nxe6 {[%clk 0:02:21]}  fxe6 {[%clk 0:02:40]} 18. Qd3 {[%clk 0:02:11]}  Qe8 {[%clk 0:02:28]} 19. Rc3 {[%clk 0:02:09]}  Nb8 {[%clk 0:01:02]} 20. Rfc1 {[%clk 0:02:08]}  Rxc3 {[%clk 0:01:02]} 21. Qxc3 {[%clk 0:02:09]}  g5 {[%clk 0:01:00]} 22. Ne1 {[%clk 0:01:48]}  f4 {[%clk 0:00:57]} 23. Bd2 {[%clk 0:01:48]}  g4 {[%clk 0:00:50]} 24. Nd3 {[%clk 0:01:33]}  Bg5 {[%clk 0:00:50]} 25. g3 {[%clk 0:01:10]}  f3 {[%clk 0:00:43]} 26. Ne1 {[%clk 0:00:38]}  Qb5 {[%clk 0:00:33]} 27. Be3 {[%clk 0:00:35]}  Qe2 {[%clk 0:00:28]} 28. Rc2 {[%clk 0:00:33]}  Qb5 {[%clk 0:00:14]} 29. Bxg5 {[%clk 0:00:29]}  hxg5 {[%clk 0:00:14]} 30. Qe3 {[%clk 0:00:30]}  Rf5 {[%clk 0:00:05]} 31. Rc8+ {[%clk 0:00:28]}  Kg7 {[%clk 0:00:04]} 32. Rxb8 {[%clk 0:00:26]}  Kg6 {[%clk 0:00:01]} 33. Rg8+ {[%clk 0:00:25]} 1-0


[Site "https://www.chess.com"]

[Event "Titled Tuesday Blitz July 25 Early 2023"]
[White "Thiel, Thomas"]
[Black "Ilkhomi, Jaloliddin"]
[WhiteFideId "4615964"]
[BlackFideId "14700948"]
[WhiteElo "2240"]
[BlackElo "2561"]
[Result "0-1"]
[Round "1"]
[TimeControl "180+2"]
[Date "2023.07.25"]
[WhiteClock "0:01:46"]
[BlackClock "0:02:15"]
[Board "203"]

1. e4 {[%clk 0:02:53]}  e6 {[%clk 0:02:57]} 2. d4 {[%clk 0:02:51]}  d5 {[%clk 0:02:57]} 3. Nc3 {[%clk 0:02:50]}  Bb4 {[%clk 0:02:56]} 4. e5 {[%clk 0:02:49]}  c5 {[%clk 0:02:54]} 5. a3 {[%clk 0:02:47]}  Bxc3+ {[%clk 0:02:54]} 6. bxc3 {[%clk 0:02:48]}  Qa5 {[%clk 0:02:55]} 7. Bd2 {[%clk 0:02:46]}  Qa4 {[%clk 0:02:55]} 8. Qg4 {[%clk 0:02:44]}  g6 {[%clk 0:02:55]} 9. Qd1 {[%clk 0:02:43]}  Nc6 {[%clk 0:02:44]} 10. Qb1 {[%clk 0:02:32]}  c4 {[%clk 0:02:35]} 11. Nf3 {[%clk 0:02:25]}  Nge7 {[%clk 0:02:29]} 12. h4 {[%clk 0:02:25]}  h6 {[%clk 0:02:29]} 13. Be2 {[%clk 0:02:13]}  Bd7 {[%clk 0:02:29]} 14. Qxb7 {[%clk 0:01:55]}  Rb8 {[%clk 0:02:26]} 15. Qc7 {[%clk 0:01:54]}  Rc8 {[%clk 0:02:15]} 16. Qd6 {[%clk 0:01:52]}  Nf5 {[%clk 0:02:15]} 17. Qc5 {[%clk 0:01:46]}  Ncxd4 {[%clk 0:02:15]} 0-1


[Site "https://www.chess.com"]

[Event "Titled Tuesday Blitz July 25 Early 2023"]
[White "Nurgaliyeva, Zarina"]
[Black "Kuchava, Ana"]
[WhiteFideId "13730096"]
[BlackFideId "13605348"]
[WhiteElo "2558"]
[BlackElo "2219"]
[Result "1-0"]
[Round "1"]
[TimeControl "180+2"]
[Date "2023.07.25"]
[WhiteClock "0:01:57"]
[BlackClock "0:00:16"]
[Board "206"]

1. e4 {[%clk 0:02:59]}  c5 {[%clk 0:02:59]} 2. Nf3 {[%clk 0:02:59]}  d6 {[%clk 0:02:58]} 3. Bb5+ {[%clk 0:02:59]}  Bd7 {[%clk 0:02:57]} 4. Bxd7+ {[%clk 0:02:57]}  Qxd7 {[%clk 0:02:58]} 5. c4 {[%clk 0:02:56]}  Nc6 {[%clk 0:02:58]} 6. d4 {[%clk 0:02:55]}  cxd4 {[%clk 0:02:58]} 7. Nxd4 {[%clk 0:02:56]}  Nf6 {[%clk 0:02:58]} 8. Nc3 {[%clk 0:02:57]}  g6 {[%clk 0:02:58]} 9. b3 {[%clk 0:02:57]}  Bg7 {[%clk 0:02:58]} 10. Bb2 {[%clk 0:02:57]}  O-O {[%clk 0:02:56]} 11. O-O {[%clk 0:02:57]}  a6 {[%clk 0:02:55]} 12. Nxc6 {[%clk 0:02:56]}  bxc6 {[%clk 0:02:55]} 13. Na4 {[%clk 0:02:57]}  Rab8 {[%clk 0:02:37]} 14. Qe2 {[%clk 0:02:56]}  Rfd8 {[%clk 0:02:00]} 15. Rfd1 {[%clk 0:02:50]}  Qc7 {[%clk 0:01:56]} 16. e5 {[%clk 0:02:48]}  Ne8 {[%clk 0:01:45]} 17. e6 {[%clk 0:02:45]}  f5 {[%clk 0:01:43]} 18. c5 {[%clk 0:02:39]}  Bxb2 {[%clk 0:01:24]} 19. Qxb2 {[%clk 0:02:38]}  Nf6 {[%clk 0:01:22]} 20. cxd6 {[%clk 0:02:27]}  Rxd6 {[%clk 0:01:20]} 21. Nc5 {[%clk 0:02:28]}  Rbd8 {[%clk 0:00:45]} 22. Rxd6 {[%clk 0:02:23]}  Qxd6 {[%clk 0:00:44]} 23. Qc2 {[%clk 0:02:21]}  Ra8 {[%clk 0:00:23]} 24. Rd1 {[%clk 0:02:18]}  Nd5 {[%clk 0:00:22]} 25. h4 {[%clk 0:02:10]}  a5 {[%clk 0:00:20]} 26. h5 {[%clk 0:02:09]}  Kg7 {[%clk 0:00:19]} 27. a3 {[%clk 0:02:05]}  Rb8 {[%clk 0:00:18]} 28. Qb2+ {[%clk 0:01:58]}  Kg8 {[%clk 0:00:16]} 29. h6 {[%clk 0:01:57]} 1-0


[Site "https://www.chess.com"]

[Event "Titled Tuesday Blitz July 25 Early 2023"]
[White "Sariego Figueredo, Wilfredo"]
[Black "Garv Gaur"]
[WhiteFideId "3500080"]
[BlackFideId "45030839"]
[WhiteElo "2210"]
[BlackElo "2558"]
[Result "0-1"]
[Round "1"]
[TimeControl "180+2"]
[Date "2023.07.25"]
[WhiteClock "0:00:13"]
[BlackClock "0:00:55"]
[Board "207"]

1. d4 {[%clk 0:02:59]}  Nf6 {[%clk 0:02:58]} 2. c4 {[%clk 0:02:59]}  e6 {[%clk 0:02:58]} 3. g4 {[%clk 0:02:57]}  Nxg4 {[%clk 0:02:57]} 4. Nf3 {[%clk 0:02:55]}  d5 {[%clk 0:02:55]} 5. Nc3 {[%clk 0:02:53]}  Nf6 {[%clk 0:02:54]} 6. Rg1 {[%clk 0:02:50]}  Nbd7 {[%clk 0:02:49]} 7. Bg5 {[%clk 0:02:42]}  c6 {[%clk 0:02:49]} 8. e4 {[%clk 0:02:38]}  dxe4 {[%clk 0:02:48]} 9. Nxe4 {[%clk 0:02:38]}  Bb4+ {[%clk 0:02:46]} 10. Ned2 {[%clk 0:02:38]}  Be7 {[%clk 0:02:38]} 11. Bd3 {[%clk 0:02:34]}  c5 {[%clk 0:02:33]} 12. Bf4 {[%clk 0:02:18]}  cxd4 {[%clk 0:02:32]} 13. Qc2 {[%clk 0:02:16]}  g6 {[%clk 0:02:23]} 14. h4 {[%clk 0:02:02]}  Nc5 {[%clk 0:02:21]} 15. Be5 {[%clk 0:01:59]}  Nxd3+ {[%clk 0:02:11]} 16. Qxd3 {[%clk 0:02:00]}  Bd7 {[%clk 0:02:12]} 17. Qxd4 {[%clk 0:01:48]}  Bc6 {[%clk 0:02:10]} 18. Qc3 {[%clk 0:01:43]}  Rg8 {[%clk 0:01:49]} 19. O-O-O {[%clk 0:01:41]}  Nd7 {[%clk 0:01:49]} 20. Bd4 {[%clk 0:01:36]}  Qc7 {[%clk 0:01:48]} 21. Ng5 {[%clk 0:01:33]}  e5 {[%clk 0:01:36]} 22. Be3 {[%clk 0:01:31]}  h6 {[%clk 0:01:31]} 23. Nge4 {[%clk 0:01:23]}  f5 {[%clk 0:01:31]} 24. Bxh6 {[%clk 0:00:54]}  fxe4 {[%clk 0:01:29]} 25. h5 {[%clk 0:00:54]}  O-O-O {[%clk 0:01:28]} 26. hxg6 {[%clk 0:00:53]}  Nc5 {[%clk 0:01:24]} 27. Kb1 {[%clk 0:00:40]}  Nd3 {[%clk 0:01:22]} 28. g7 {[%clk 0:00:38]}  Bc5 {[%clk 0:01:10]} 29. Rdf1 {[%clk 0:00:30]}  Bd4 {[%clk 0:01:10]} 30. Qa3 {[%clk 0:00:23]}  Qb6 {[%clk 0:01:06]} 31. Nb3 {[%clk 0:00:20]}  Bxb2 {[%clk 0:01:03]} 32. Qe7 {[%clk 0:00:20]}  Bd4 {[%clk 0:00:58]} 33. c5 {[%clk 0:00:19]}  Nxc5 {[%clk 0:00:57]} 34. Qf7 {[%clk 0:00:18]}  Bd5 {[%clk 0:00:55]} 35. Qf5+ {[%clk 0:00:17]}  Be6 {[%clk 0:00:54]} 36. Qg6 {[%clk 0:00:11]}  Nxb3 {[%clk 0:00:53]} 37. Qxe6+ {[%clk 0:00:11]}  Qxe6 {[%clk 0:00:53]} 38. axb3 {[%clk 0:00:12]}  Qxb3+ {[%clk 0:00:53]} 39. Kc1 {[%clk 0:00:13]}  Qb2+ {[%clk 0:00:54]} 40. Kd1 {[%clk 0:00:14]}  Bc3+ {[%clk 0:00:54]} 41. Bd2 {[%clk 0:00:13]}  Qxd2# {[%clk 0:00:55]} 0-1


[Site "https://www.chess.com"]